[Event "FIDE Grand Swiss 2023"]
[Site "Villa Marina, Douglas, Isle of Man"]
[Date "2023.10.25"]
[Round "1.53"]
[White "Greenfeld, Alon"]
[Black "Melkumyan, Hrant"]
[Result "0-1"]
[WhiteElo "2455"]
[BlackElo "2650"]
[EventDate "2023.10.25"]
[ECO "E60"]
[PlyCount "134"]
[BlackFideId "13302485"]
[TimeControl "40/100 + 20/50 + 15 + 30s/move"]
[WhiteFideId "2800039"]

1.d4 {[%clk 01:39:48] [%emt 00:01:11]} 1...Nf6 {[%clk 01:40:41] [%emt 00:00:19]} 
2.c4 {[%clk 01:40:06] [%emt 00:00:12]} 2...g6 {[%clk 01:41:00] [%emt 00:00:11]} 
3.g3 {[%clk 01:38:51] [%emt 00:01:45]} 3...c5 {[%clk 01:40:33] [%emt 00:00:58]} 
4.dxc5 {[%clk 01:37:58] [%emt 00:01:22]} 4...Qa5+ {[%clk 01:38:34] [%emt
00:02:29]} 5.Nc3 {[%clk 01:25:44] [%emt 00:12:44]} 5...Qxc5 {[%clk 01:36:43]
[%emt 00:02:21]} 6.e4 {[%clk 01:25:14] [%emt 00:01:00]} 6...Bg7 {[%clk 01:34:31]
[%emt 00:02:43]} 7.Be3 {[%clk 01:24:04] [%emt 00:01:40]} 7...Qa5 {[%clk
01:34:22] [%emt 00:00:38]} 8.Bg2 {[%clk 01:24:03] [%emt 00:00:31]} 8...Nc6 
{[%clk 01:28:46] [%emt 00:06:06]} 9.Ne2 {[%clk 01:14:56] [%emt 00:09:37]} 
9...d6 {[%clk 01:21:10] [%emt 00:08:06]} 10.O-O {[%clk 01:06:59] [%emt
00:08:27]} 10...h5 {[%clk 01:15:13] [%emt 00:06:27]} 11.h3 {[%clk 00:53:49]
[%emt 00:13:41]} 11...O-O {[%clk 00:56:23] [%emt 00:19:19]} 12.Rc1 {[%clk
00:44:38] [%emt 00:09:41]} 12...Be6 {[%clk 00:49:43] [%emt 00:07:10]} 13.b3 
{[%clk 00:38:34] [%emt 00:06:35]} 13...Rfc8 {[%clk 00:49:36] [%emt 00:00:37]} 
14.Nf4 {[%clk 00:36:52] [%emt 00:02:12]} 14...Bd7 {[%clk 00:47:32] [%emt
00:02:34]} 15.Qe2 {[%clk 00:36:48] [%emt 00:00:34]} 15...Be8 {[%clk 00:43:38]
[%emt 00:04:24]} 16.Rfd1 {[%clk 00:22:13] [%emt 00:15:05]} 16...Nd7 {[%clk
00:41:20] [%emt 00:02:47]} 17.Qd2 {[%clk 00:20:54] [%emt 00:01:50]} 17...Rab8 
{[%clk 00:40:33] [%emt 00:01:17]} 18.Ncd5 {[%clk 00:17:37] [%emt 00:03:47]} 
18...Qxd2 {[%clk 00:38:30] [%emt 00:02:33]} 19.Bxd2 {[%clk 00:17:58] [%emt
00:00:09]} 19...Kf8 {[%clk 00:38:22] [%emt 00:00:38]} 20.Bc3 {[%clk 00:16:53]
[%emt 00:01:35]} 20...Bxc3 {[%clk 00:37:33] [%emt 00:01:18]} 21.Rxc3 {[%clk
00:15:40] [%emt 00:01:43]} 21...Nc5 {[%clk 00:37:29] [%emt 00:00:35]} 22.h4 
{[%clk 00:12:21] [%emt 00:03:49]} 22...Bd7 {[%clk 00:35:31] [%emt 00:02:27]} 
23.f3 {[%clk 00:12:47] [%emt 00:00:04]} 23...b6 {[%clk 00:35:14] [%emt
00:00:47]} 24.Kf2 {[%clk 00:12:06] [%emt 00:01:11]} 24...a5 {[%clk 00:35:29]
[%emt 00:00:16]} 25.Bf1 {[%clk 00:10:48] [%emt 00:01:47]} 25...Ne5 {[%clk
00:34:13] [%emt 00:01:46]} 26.Rcc1 {[%clk 00:10:03] [%emt 00:01:16]} 26...f6 
{[%clk 00:33:00] [%emt 00:01:42]} 27.Ke3 {[%clk 00:09:18] [%emt 00:01:15]} 
27...Kf7 {[%clk 00:32:46] [%emt 00:00:45]} 28.Be2 {[%clk 00:08:45] [%emt
00:01:03]} 28...Na6 {[%clk 00:24:48] [%emt 00:08:28]} 29.Nd3 {[%clk 00:07:45]
[%emt 00:01:29]} 29...Nc6 {[%clk 00:23:04] [%emt 00:02:15]} 30.Nc3 {[%clk
00:06:42] [%emt 00:01:34]} 30...Ncb4 {[%clk 00:22:40] [%emt 00:00:53]} 31.Nxb4 
{[%clk 00:06:31] [%emt 00:00:42]} 31...axb4 {[%clk 00:22:07] [%emt 00:01:02]} 
32.Nd5 {[%clk 00:06:28] [%emt 00:00:33]} 32...Rc5 {[%clk 00:22:20] [%emt
00:00:17]} 33.Kf2 {[%clk 00:04:29] [%emt 00:02:29]} 33...Be6 {[%clk 00:20:53]
[%emt 00:01:57]} 34.Ne3 {[%clk 00:04:27] [%emt 00:00:32]} 34...Ra5 {[%clk
00:21:01] [%emt 00:00:22]} 35.Rd2 {[%clk 00:04:21] [%emt 00:00:35]} 35...Nc5 
{[%clk 00:20:47] [%emt 00:00:45]} 36.Rcc2 {[%clk 00:03:31] [%emt 00:01:20]} 
36...g5 {[%clk 00:18:01] [%emt 00:03:16]} 37.hxg5 {[%clk 00:02:59] [%emt
00:01:02]} 37...fxg5 {[%clk 00:18:24] [%emt 00:00:07]} 38.Ng2 {[%clk 00:02:17]
[%emt 00:01:12]} 38...g4 {[%clk 00:13:04] [%emt 00:05:50]} 39.Nf4 {[%clk
00:01:59] [%emt 00:00:48]} 39...Rh8 {[%clk 00:08:44] [%emt 00:04:50]} 40.Rc1 
{[%clk 00:01:20] [%emt 00:01:09]} 40...h4 {[%clk 00:07:10] [%emt 00:02:04]} 
41.gxh4 {[%clk 00:42:28] [%emt 00:09:21]} 41...gxf3 {[%clk 00:51:30] [%emt
00:06:10]} 42.Bxf3 {[%clk 00:41:40] [%emt 00:01:19]} 42...Rxh4 {[%clk 00:51:53]
[%emt 00:00:07]} 43.Ke3 {[%clk 00:40:31] [%emt 00:01:38]} 43...Ke8 {[%clk
00:47:09] [%emt 00:05:14]} 44.Rg1 {[%clk 00:28:43] [%emt 00:12:18]} 44...Bf7 
{[%clk 00:44:21] [%emt 00:03:18]} 45.Rgg2 {[%clk 00:21:45] [%emt 00:07:28]} 
45...Nd7 {[%clk 00:42:46] [%emt 00:02:05]} 46.Rh2 {[%clk 00:17:20] [%emt
00:04:56]} 46...Rxh2 {[%clk 00:43:08] [%emt 00:00:08]} 47.Rxh2 {[%clk 00:17:47]
[%emt 00:00:02]} 47...Ne5 {[%clk 00:43:19] [%emt 00:00:20]} 48.Nd3 {[%clk
00:16:00] [%emt 00:02:16]} 48...Nxd3 {[%clk 00:42:34] [%emt 00:01:15]} 49.Kxd3 
{[%clk 00:16:15] [%emt 00:00:16]} 49...Kd7 {[%clk 00:40:16] [%emt 00:02:48]} 
50.Bd1 {[%clk 00:06:24] [%emt 00:10:20]} 50...Be6 {[%clk 00:40:11] [%emt
00:00:35]} 51.Rg2 {[%clk 00:06:39] [%emt 00:00:15]} 51...Ra8 {[%clk 00:40:11]
[%emt 00:00:31]} 52.Bf3 {[%clk 00:05:04] [%emt 00:02:05]} 52...Rh8 {[%clk
00:39:30] [%emt 00:01:11]} 53.Kc2 {[%clk 00:04:40] [%emt 00:00:54]} 53...Rh3 
{[%clk 00:39:37] [%emt 00:00:22]} 54.Rf2 {[%clk 00:04:44] [%emt 00:00:26]} 
54...Kc7 {[%clk 00:39:17] [%emt 00:00:50]} 55.Kb2 {[%clk 00:04:55] [%emt
00:00:19]} 55...Rh4 {[%clk 00:36:27] [%emt 00:03:21]} 56.Re2 {[%clk 00:03:52]
[%emt 00:01:33]} 56...Rf4 {[%clk 00:28:43] [%emt 00:08:14]} 57.Re3 {[%clk
00:04:01] [%emt 00:00:20]} 57...Bd7 {[%clk 00:28:54] [%emt 00:00:20]} 58.a3 
{[%clk 00:04:15] [%emt 00:00:16]} 58...bxa3+ {[%clk 00:29:19] [%emt 00:00:05]} 
59.Kxa3 {[%clk 00:04:38] [%emt 00:00:07]} 59...Bc6 {[%clk 00:29:38] [%emt
00:00:11]} 60.Bg2 {[%clk 00:03:09] [%emt 00:01:58]} 60...Rg4 {[%clk 00:29:40]
[%emt 00:00:28]} 61.Bf3 {[%clk 00:12:31] [%emt 00:06:08]} 61...Rg3 {[%clk
00:44:34] [%emt 00:00:37]} 62.Kb4 {[%clk 00:09:51] [%emt 00:03:10]} 62...Kd7 
{[%clk 00:44:45] [%emt 00:00:19]} 63.Rd3 {[%clk 00:09:45] [%emt 00:00:35]} 
63...Ke6 {[%clk 00:44:38] [%emt 00:00:37]} 64.Kc3 {[%clk 00:09:57] [%emt
00:00:18]} 64...Ke5 {[%clk 00:44:53] [%emt 00:00:15]} 65.Kd2 {[%clk 00:07:27]
[%emt 00:03:00]} 65...Kf4 {[%clk 00:45:02] [%emt 00:00:21]} 66.Ke2 {[%clk
00:06:52] [%emt 00:01:06]} 66...Rh3 {[%clk 00:43:53] [%emt 00:01:38]} 67.Bg2 
{[%clk 00:05:14] [%emt 00:02:08]} 67...Rh2 {[%clk 00:44:12] [%emt 00:00:11]} 0-1

[Event "FIDE Grand Swiss 2023"]
[Site "Villa Marina, Douglas, Isle of Man"]
[Date "2023.10.25"]
[Round "1.54"]
[White "Pichot, Alan"]
[Black "Zhalmakhanov, Ramazan"]
[Result "0-1"]
[WhiteElo "2650"]
[BlackElo "2447"]
[EventDate "2023.10.25"]
[ECO "C50"]
[PlyCount "160"]
[BlackFideId "13706357"]
[TimeControl "40/100 + 20/50 + 15 + 30s/move"]
[WhiteFideId "110973"]

1.e4 {[%clk 01:40:51] [%emt 00:00:07]} 1...e5 {[%clk 01:40:32] [%emt 00:00:29]} 
2.Nf3 {[%clk 01:41:13] [%emt 00:00:09]} 2...Nc6 {[%clk 01:40:50] [%emt
00:00:12]} 3.Bc4 {[%clk 01:39:13] [%emt 00:02:30]} 3...Nf6 {[%clk 01:40:26]
[%emt 00:00:54]} 4.d3 {[%clk 01:38:40] [%emt 00:01:03]} 4...Bc5 {[%clk 01:40:01]
[%emt 00:00:54]} 5.O-O {[%clk 01:37:27] [%emt 00:01:44]} 5...O-O {[%clk
01:38:47] [%emt 00:01:44]} 6.Nbd2 {[%clk 01:36:02] [%emt 00:01:56]} 6...a6 
{[%clk 01:32:49] [%emt 00:06:27]} 7.c3 {[%clk 01:29:59] [%emt 00:06:33]} 
7...Ba7 {[%clk 01:30:51] [%emt 00:02:28]} 8.a4 {[%clk 01:22:25] [%emt 00:08:05]} 
8...d5 {[%clk 01:22:23] [%emt 00:08:58]} 9.exd5 {[%clk 01:22:04] [%emt
00:00:51]} 9...Nxd5 {[%clk 01:22:40] [%emt 00:00:11]} 10.Re1 {[%clk 01:20:22]
[%emt 00:02:13]} 10...Bg4 {[%clk 01:17:07] [%emt 00:06:04]} 11.Ne4 {[%clk
01:17:19] [%emt 00:03:33]} 11...Kh8 {[%clk 00:51:30] [%emt 00:26:06]} 12.h3 
{[%clk 01:06:44] [%emt 00:11:05]} 12...Bh5 {[%clk 00:50:32] [%emt 00:01:29]} 
13.Ng3 {[%clk 01:05:16] [%emt 00:01:57]} 13...Bxf3 {[%clk 00:42:04] [%emt
00:08:59]} 14.Qxf3 {[%clk 01:05:14] [%emt 00:00:31]} 14...Nde7 {[%clk 00:42:04]
[%emt 00:00:30]} 15.Re4 {[%clk 00:43:54] [%emt 00:21:50]} 15...f5 {[%clk
00:40:35] [%emt 00:01:58]} 16.Rh4 {[%clk 00:43:54] [%emt 00:00:31]} 16...Qe8 
{[%clk 00:40:41] [%emt 00:00:24]} 17.Bg5 {[%clk 00:37:56] [%emt 00:06:28]} 
17...Qg6 {[%clk 00:34:35] [%emt 00:06:36]} 18.Qh5 {[%clk 00:34:27] [%emt
00:03:59]} 18...Qxh5 {[%clk 00:29:16] [%emt 00:05:49]} 19.Rxh5 {[%clk 00:34:46]
[%emt 00:00:11]} 19...g6 {[%clk 00:28:29] [%emt 00:01:18]} 20.Rh4 {[%clk
00:26:18] [%emt 00:08:58]} 20...f4 {[%clk 00:24:22] [%emt 00:04:38]} 21.Bxe7 
{[%clk 00:21:14] [%emt 00:05:34]} 21...Nxe7 {[%clk 00:23:37] [%emt 00:01:14]} 
22.Ne4 {[%clk 00:21:38] [%emt 00:00:06]} 22...h5 {[%clk 00:22:02] [%emt
00:02:05]} 23.Be6 {[%clk 00:13:18] [%emt 00:08:51]} 23...Kg7 {[%clk 00:19:22]
[%emt 00:03:10]} 24.Kh1 {[%clk 00:05:10] [%emt 00:08:38]} 24...Nf5 {[%clk
00:13:21] [%emt 00:06:31]} 25.g3 {[%clk 00:04:52] [%emt 00:00:48]} 25...Nxh4 
{[%clk 00:08:40] [%emt 00:05:10]} 26.gxh4 {[%clk 00:05:15] [%emt 00:00:07]} 
26...Rad8 {[%clk 00:06:41] [%emt 00:02:30]} 27.Bc4 {[%clk 00:05:09] [%emt
00:00:36]} 27...Kh6 {[%clk 00:05:16] [%emt 00:01:54]} 28.f3 {[%clk 00:03:40]
[%emt 00:02:00]} 28...a5 {[%clk 00:04:09] [%emt 00:01:37]} 29.Kg2 {[%clk
00:03:24] [%emt 00:00:45]} 29...Bb6 {[%clk 00:04:06] [%emt 00:00:34]} 30.Ra3 
{[%clk 00:03:15] [%emt 00:00:39]} 30...Be3 {[%clk 00:01:38] [%emt 00:02:57]} 
31.Kf1 {[%clk 00:02:10] [%emt 00:01:35]} 31...c6 {[%clk 00:01:49] [%emt
00:00:20]} 32.Ke2 {[%clk 00:00:39] [%emt 00:02:01]} 32...Rd7 {[%clk 00:01:33]
[%emt 00:00:47]} 33.Ra1 {[%clk 00:00:36] [%emt 00:00:34]} 33...Ra8 {[%clk
00:01:06] [%emt 00:00:56]} 34.Ra3 {[%clk 00:00:40] [%emt 00:00:26]} 34...Bg1 
{[%clk 00:00:59] [%emt 00:00:36]} 35.Rb3 {[%clk 00:00:47] [%emt 00:00:24]} 
35...Kg7 {[%clk 00:00:52] [%emt 00:00:36]} 36.Kf1 {[%clk 00:00:46] [%emt
00:00:32]} 36...Be3 {[%clk 00:01:06] [%emt 00:00:16]} 37.Ke2 {[%clk 00:00:52]
[%emt 00:00:24]} 37...Rb8 {[%clk 00:01:13] [%emt 00:00:23]} 38.Be6 {[%clk
00:00:35] [%emt 00:00:46]} 38...Rc7 {[%clk 00:00:57] [%emt 00:00:46]} 39.Bc4 
{[%clk 00:00:51] [%emt 00:00:14]} 39...Kf8 {[%clk 00:01:09] [%emt 00:00:18]} 
40.Kf1 {[%clk 00:00:32] [%emt 00:00:50]} 40...Ke7 {[%clk 00:01:32] [%emt
00:00:07]} 41.Ke2 {[%clk 00:44:44] [%emt 00:06:18]} 41...Rd7 {[%clk 00:36:49]
[%emt 00:15:12]} 42.Kf1 {[%clk 00:36:38] [%emt 00:08:36]} 42...b5 {[%clk
00:34:51] [%emt 00:02:30]} 43.axb5 {[%clk 00:34:25] [%emt 00:02:43]} 43...Rdb7 
{[%clk 00:34:59] [%emt 00:00:20]} 44.d4 {[%clk 00:22:30] [%emt 00:12:26]} 
44...exd4 {[%clk 00:30:36] [%emt 00:04:54]} 45.bxc6 {[%clk 00:20:29] [%emt
00:02:31]} 45...Rxb3 {[%clk 00:30:21] [%emt 00:00:45]} 46.Bxb3 {[%clk 00:20:53]
[%emt 00:00:05]} 46...Kd8 {[%clk 00:21:28] [%emt 00:09:23]} 47.Nc5 {[%clk
00:15:54] [%emt 00:05:29]} 47...Rb6 {[%clk 00:07:46] [%emt 00:14:13]} 48.cxd4 
{[%clk 00:13:44] [%emt 00:02:39]} 48...Rxc6 {[%clk 00:08:05] [%emt 00:00:11]} 
49.Bd5 {[%clk 00:08:28] [%emt 00:05:46]} 49...Rb6 {[%clk 00:07:44] [%emt
00:00:51]} 50.b3 {[%clk 00:08:49] [%emt 00:00:10]} 50...Ke7 {[%clk 00:07:28]
[%emt 00:00:46]} 51.Nd3 {[%clk 00:09:04] [%emt 00:00:15]} 51...Rd6 {[%clk
00:06:39] [%emt 00:01:18]} 52.Be4 {[%clk 00:06:45] [%emt 00:02:50]} 52...Kf6 
{[%clk 00:06:57] [%emt 00:00:12]} 53.d5 {[%clk 00:02:23] [%emt 00:04:51]} 
53...Rb6 {[%clk 00:07:03] [%emt 00:00:24]} 54.Ke2 {[%clk 00:02:48] [%emt
00:00:06]} 54...Rxb3 {[%clk 00:06:17] [%emt 00:01:16]} 55.d6 {[%clk 00:03:12]
[%emt 00:00:06]} 55...a4 {[%clk 00:01:05] [%emt 00:05:41]} 56.d7 {[%clk
00:03:11] [%emt 00:00:32]} 56...Ke7 {[%clk 00:01:30] [%emt 00:00:05]} 57.Bd5 
{[%clk 00:00:42] [%emt 00:02:59]} 57...Kxd7 {[%clk 00:00:38] [%emt 00:01:22]} 
58.Bxb3 {[%clk 00:00:33] [%emt 00:00:39]} 58...axb3 {[%clk 00:01:06] [%emt
00:00:02]} 59.Ne5+ {[%clk 00:00:33] [%emt 00:00:30]} 59...Ke6 {[%clk 00:01:03]
[%emt 00:00:32]} 60.Nc4 {[%clk 00:00:52] [%emt 00:00:12]} 60...Kd5 {[%clk
00:01:07] [%emt 00:00:25]} 61.Kd3 {[%clk 00:01:02] [%emt 00:00:21]} 61...Bd4 
{[%clk 00:01:15] [%emt 00:00:21]} 62.Nd2 {[%clk 00:01:00] [%emt 00:00:32]} 
62...b2 {[%clk 00:01:39] [%emt 00:00:06]} 63.Kc2 {[%clk 00:01:20] [%emt
00:00:11]} 63...Be5 {[%clk 00:01:50] [%emt 00:00:18]} 64.Kd3 {[%clk 00:01:06]
[%emt 00:00:45]} 64...Bf6 {[%clk 00:02:11] [%emt 00:00:08]} 65.Kc2 {[%clk
00:01:00] [%emt 00:00:36]} 65...Bd4 {[%clk 00:01:21] [%emt 00:01:20]} 66.Ne4 
{[%clk 00:00:36] [%emt 00:00:54]} 66...Be5 {[%clk 00:01:10] [%emt 00:00:41]} 
67.Nd2 {[%clk 00:00:54] [%emt 00:00:13]} 67...Bf6 {[%clk 00:01:01] [%emt
00:00:39]} 68.Ne4 {[%clk 00:00:45] [%emt 00:00:39]} 68...Bxh4 {[%clk 00:01:23]
[%emt 00:00:08]} 69.Kxb2 {[%clk 00:00:32] [%emt 00:00:42]} 69...Kd4 {[%clk
00:01:48] [%emt 00:00:05]} 70.Kc2 {[%clk 00:00:31] [%emt 00:00:32]} 70...Ke3 
{[%emt 00:00:32]} 71.Nd2 {[%clk 00:00:41]} 71...Ke2 {[%clk 00:01:30] [%emt
00:01:05]} 72.Nc4 {[%clk 00:00:54] [%emt 00:00:17]} 72...Bf6 {[%clk 00:01:48]
[%emt 00:00:12]} 73.Nd2 {[%clk 00:01:15] [%emt 00:00:09]} 73...Bd4 {[%clk
00:01:46] [%emt 00:00:30]} 74.Nc4 {[%clk 00:01:07] [%emt 00:00:40]} 74...Bf6 
{[%clk 00:00:46] [%emt 00:01:29]} 75.Nd2 {[%clk 00:00:58] [%emt 00:00:40]} 
75...Be5 {[%clk 00:00:40] [%emt 00:00:35]} 76.Nc4 {[%clk 00:01:16] [%emt
00:00:13]} 76...Bd4 {[%clk 00:00:50] [%emt 00:00:20]} 77.Nd2 {[%clk 00:12:08]
[%emt 00:04:38]} 77...Be3 {[%clk 00:15:11] [%emt 00:01:09]} 78.Nc4 {[%clk
00:12:16] [%emt 00:00:22]} 78...g5 {[%clk 00:14:06] [%emt 00:01:36]} 79.Ne5 
{[%clk 00:12:24] [%emt 00:00:21]} 79...Bd4 {[%clk 00:14:22] [%emt 00:00:12]} 
80.Nf7 {[%clk 00:12:36] [%emt 00:00:19]} 80...Bf6 {[%clk 00:14:27] [%emt
00:00:25]} 0-1

[Event "FIDE Grand Swiss 2023"]
[Site "Villa Marina, Douglas, Isle of Man"]
[Date "2023.10.25"]
[Round "1.55"]
[White "Royal, Shreyas"]
[Black "Santos Latasa, Jaime"]
[Result "1-0"]
[WhiteElo "2407"]
[BlackElo "2650"]
[EventDate "2023.10.25"]
[ECO "E71"]
[PlyCount "155"]
[BlackFideId "2293307"]
[TimeControl "40/100 + 20/50 + 15 + 30s/move"]
[WhiteFideId "448869"]

1.d4 {[%clk 01:40:52] [%emt 00:00:06]} 1...Nf6 {[%clk 01:40:49] [%emt 00:00:11]} 
2.c4 {[%clk 01:41:04] [%emt 00:00:18]} 2...g6 {[%clk 01:41:13] [%emt 00:00:07]} 
3.Nc3 {[%clk 01:40:59] [%emt 00:00:35]} 3...Bg7 {[%clk 01:41:37] [%emt
00:00:07]} 4.e4 {[%clk 01:41:10] [%emt 00:00:17]} 4...d6 {[%clk 01:42:02] [%emt
00:00:05]} 5.h3 {[%clk 01:41:14] [%emt 00:00:26]} 5...e5 {[%clk 01:41:49] [%emt
00:00:44]} 6.d5 {[%clk 01:39:42] [%emt 00:02:01]} 6...a5 {[%emt 00:01:52]} 
7.Be3 {[%clk 01:38:41]} 7...Na6 {[%clk 01:41:26] [%emt 00:01:02]} 8.Bd3 {[%clk
01:27:49] [%emt 00:11:22]} 8...O-O {[%clk 01:38:08] [%emt 00:03:48]} 9.Qd2 
{[%clk 01:21:42] [%emt 00:06:38]} 9...Nd7 {[%clk 01:28:55] [%emt 00:09:43]} 
10.Nge2 {[%clk 01:05:28] [%emt 00:16:44]} 10...Ndc5 {[%clk 01:10:46] [%emt
00:18:39]} 11.Bb1 {[%clk 00:58:51] [%emt 00:07:06]} 11...Bd7 {[%clk 01:07:20]
[%emt 00:03:57]} 12.O-O {[%clk 00:57:17] [%emt 00:02:03]} 12...f5 {[%clk
01:00:44] [%emt 00:07:07]} 13.exf5 {[%clk 00:46:52] [%emt 00:10:54]} 13...gxf5 
{[%clk 01:00:37] [%emt 00:00:38]} 14.f4 {[%clk 00:47:15] [%emt 00:00:05]} 
14...e4 {[%clk 01:00:13] [%emt 00:00:55]} 15.Bd4 {[%clk 00:41:47] [%emt
00:05:58]} 15...Rf7 {[%clk 00:58:17] [%emt 00:02:26]} 16.Nd1 {[%clk 00:38:17]
[%emt 00:04:01]} 16...b5 {[%clk 00:54:05] [%emt 00:04:42]} 17.Ne3 {[%clk
00:33:54] [%emt 00:04:52]} 17...bxc4 {[%clk 00:48:56] [%emt 00:05:40]} 18.Qxa5 
{[%clk 00:29:51] [%emt 00:04:34]} 18...Bxd4 {[%clk 00:37:42] [%emt 00:11:43]} 
19.Nxd4 {[%clk 00:30:14] [%emt 00:00:07]} 19...Qf6 {[%clk 00:33:14] [%emt
00:04:58]} 20.Qc3 {[%clk 00:28:02] [%emt 00:02:41]} 20...Na4 {[%clk 00:32:25]
[%emt 00:01:19]} 21.Qd2 {[%clk 00:26:32] [%emt 00:02:01]} 21...N6c5 {[%clk
00:30:00] [%emt 00:02:55]} 22.Nxc4 {[%clk 00:25:26] [%emt 00:01:36]} 22...Nd3 
{[%clk 00:30:10] [%emt 00:00:20]} 23.Qe3 {[%clk 00:25:48] [%emt 00:00:08]} 
23...Nb4 {[%clk 00:27:33] [%emt 00:03:07]} 24.Qd2 {[%clk 00:20:25] [%emt
00:05:52]} 24...Nxd5 {[%clk 00:24:29] [%emt 00:03:35]} 25.Bc2 {[%clk 00:19:05]
[%emt 00:01:49]} 25...Nc5 {[%clk 00:24:07] [%emt 00:00:52]} 26.Nb3 {[%clk
00:13:59] [%emt 00:05:37]} 26...Nd3 {[%clk 00:16:01] [%emt 00:08:35]} 27.Bxd3 
{[%clk 00:13:30] [%emt 00:01:00]} 27...exd3 {[%clk 00:16:30] [%emt 00:00:01]} 
28.Qxd3 {[%clk 00:12:32] [%emt 00:01:28]} 28...Nb4 {[%clk 00:16:54] [%emt
00:00:05]} 29.Qd2 {[%clk 00:12:02] [%emt 00:01:00]} 29...Rb8 {[%clk 00:16:30]
[%emt 00:00:54]} 30.Nd4 {[%clk 00:10:22] [%emt 00:02:11]} 30...Nc6 {[%clk
00:14:41] [%emt 00:02:18]} 31.Rad1 {[%clk 00:07:45] [%emt 00:03:07]} 31...Rg7 
{[%clk 00:12:59] [%emt 00:02:13]} 32.Nf3 {[%clk 00:06:35] [%emt 00:01:40]} 
32...Kh8 {[%clk 00:12:53] [%emt 00:00:35]} 33.Rf2 {[%clk 00:06:13] [%emt
00:00:52]} 33...Rbg8 {[%clk 00:12:50] [%emt 00:00:33]} 34.Ne3 {[%clk 00:06:06]
[%emt 00:00:38]} 34...Ne7 {[%clk 00:12:59] [%emt 00:00:21]} 35.Qc3 {[%clk
00:04:53] [%emt 00:01:42]} 35...Qxc3 {[%clk 00:13:06] [%emt 00:00:24]} 36.bxc3 
{[%clk 00:05:19] [%emt 00:00:05]} 36...Ra8 {[%clk 00:13:22] [%emt 00:00:13]} 
37.Rb2 {[%clk 00:03:35] [%emt 00:02:14]} 37...h6 {[%clk 00:12:38] [%emt
00:01:14]} 38.Kf2 {[%clk 00:02:51] [%emt 00:01:14]} 38...Rgg8 {[%clk 00:09:59]
[%emt 00:03:09]} 39.Rd4 {[%clk 00:01:23] [%emt 00:01:58]} 39...Ra3 {[%clk
00:09:39] [%emt 00:00:49]} 40.c4 {[%clk 00:00:44] [%emt 00:01:10]} 40...Ra5 
{[%clk 00:06:59] [%emt 00:03:09]} 41.Rdd2 {[%clk 00:46:54] [%emt 00:04:20]} 
41...Rga8 {[%clk 00:51:51] [%emt 00:05:39]} 42.Rb7 {[%clk 00:38:20] [%emt
00:09:04]} 42...Rc5 {[%clk 00:49:26] [%emt 00:02:53]} 43.Nd4 {[%clk 00:37:14]
[%emt 00:01:37]} 43...Kg8 {[%clk 00:43:38] [%emt 00:06:18]} 44.Nb3 {[%clk
00:29:18] [%emt 00:08:26]} 44...Rc6 {[%clk 00:43:50] [%emt 00:00:19]} 45.Nd4 
{[%clk 00:29:43] [%emt 00:00:05]} 45...Rc5 {[%clk 00:44:15] [%emt 00:00:05]} 
46.Rc2 {[%clk 00:22:42] [%emt 00:07:31]} 46...Kf7 {[%clk 00:42:20] [%emt
00:02:25]} 47.Nb3 {[%clk 00:22:28] [%emt 00:00:44]} 47...Rc6 {[%clk 00:42:22]
[%emt 00:00:28]} 48.Nd4 {[%clk 00:22:54] [%emt 00:00:04]} 48...Rc5 {[%clk
00:42:47] [%emt 00:00:05]} 49.Nb5 {[%clk 00:19:58] [%emt 00:03:26]} 49...Bxb5 
{[%clk 00:41:59] [%emt 00:01:18]} 50.Rxb5 {[%clk 00:20:23] [%emt 00:00:05]} 
50...Ra4 {[%clk 00:40:16] [%emt 00:02:12]} 51.Rxc5 {[%clk 00:16:22] [%emt
00:04:32]} 51...dxc5 {[%clk 00:40:33] [%emt 00:00:14]} 52.Rd2 {[%clk 00:10:56]
[%emt 00:05:55]} 52...Ke6 {[%clk 00:38:21] [%emt 00:02:42]} 53.g4 {[%clk
00:10:14] [%emt 00:01:12]} 53...Ra3 {[%clk 00:33:40] [%emt 00:05:11]} 54.Nd5 
{[%clk 00:09:03] [%emt 00:01:41]} 54...Nc6 {[%clk 00:23:42] [%emt 00:10:28]} 
55.Nxc7+ {[%clk 00:09:18] [%emt 00:00:15]} 55...Ke7 {[%clk 00:24:06] [%emt
00:00:07]} 56.Nd5+ {[%clk 00:08:03] [%emt 00:01:44]} 56...Kf7 {[%clk 00:23:33]
[%emt 00:01:02]} 57.Rb2 {[%clk 00:07:04] [%emt 00:01:29]} 57...Nd4 {[%clk
00:23:06] [%emt 00:00:57]} 58.Ne3 {[%clk 00:06:48] [%emt 00:00:46]} 58...fxg4 
{[%clk 00:23:19] [%emt 00:00:17]} 59.hxg4 {[%clk 00:07:17] [%emt 00:00:02]} 
59...Kg7 {[%clk 00:23:23] [%emt 00:00:25]} 60.Rb7+ {[%clk 00:03:55] [%emt
00:03:52]} 60...Kg6 {[%clk 00:22:30] [%emt 00:01:23]} 61.Rb6+ {[%clk 00:14:32]
[%emt 00:04:54]} 61...Kh7 {[%clk 00:37:03] [%emt 00:00:56]} 62.f5 {[%clk
00:14:23] [%emt 00:00:39]} 62...Kg7 {[%clk 00:37:04] [%emt 00:00:29]} 63.Rg6+ 
{[%clk 00:14:42] [%emt 00:00:11]} 63...Kf7 {[%clk 00:37:03] [%emt 00:00:32]} 
64.Rxh6 {[%clk 00:14:25] [%emt 00:00:47]} 64...Rxa2+ {[%clk 00:37:17] [%emt
00:00:16]} 65.Kg3 {[%clk 00:14:44] [%emt 00:00:11]} 65...Ra3 {[%clk 00:37:02]
[%emt 00:00:45]} 66.Kf4 {[%clk 00:15:07] [%emt 00:00:06]} 66...Ne2+ {[%clk
00:37:19] [%emt 00:00:14]} 67.Kf3 {[%clk 00:15:32] [%emt 00:00:05]} 67...Nd4+ 
{[%clk 00:37:09] [%emt 00:00:40]} 68.Ke4 {[%clk 00:15:56] [%emt 00:00:05]} 
68...Ra8 {[%clk 00:37:24] [%emt 00:00:16]} 69.Rh7+ {[%clk 00:15:32] [%emt
00:00:53]} 69...Kf6 {[%clk 00:37:41] [%emt 00:00:13]} 70.Nd5+ {[%clk 00:15:40]
[%emt 00:00:22]} 70...Kg5 {[%clk 00:38:06] [%emt 00:00:06]} 71.Rg7+ {[%clk
00:16:06] [%emt 00:00:03]} 71...Kh4 {[%clk 00:38:30] [%emt 00:00:05]} 72.Kf4 
{[%clk 00:15:52] [%emt 00:00:44]} 72...Ne2+ {[%clk 00:38:53] [%emt 00:00:07]} 
73.Ke5 {[%clk 00:16:18] [%emt 00:00:05]} 73...Re8+ {[%clk 00:39:12] [%emt
00:00:11]} 74.Ne7 {[%clk 00:16:41] [%emt 00:00:07]} 74...Kg3 {[%clk 00:39:11]
[%emt 00:00:31]} 75.f6 {[%clk 00:17:06] [%emt 00:00:05]} 75...Nf4 {[%clk
00:39:37] [%emt 00:00:05]} 76.Kf5 {[%clk 00:17:26] [%emt 00:00:10]} 76...Kf3 
{[%clk 00:39:19] [%emt 00:00:47]} 77.f7 {[%clk 00:17:38] [%emt 00:00:17]} 
77...Rf8 {[%clk 00:39:42] [%emt 00:00:08]} 78.Ng6 {[%clk 00:18:01] [%emt
00:00:07]} 1-0